Workbook

Sheet MSU
B1: Jouni Koskela | E1: 2.7.1988 Alajärvi
B2: SUPERPESIS | E2: Runkosarja | I2: Kärkilyönnit (KL), pesänvälit | P2: Runkosarja TOP-30 | U2: Ylempi loppusarja | AB2: Ylempi loppusarja TOP-10 | AG2: Play off, voitot, voittoprosentti | AL2: Arvo-ottelut | AO2: Mitalit
B3: Vuosi | C3: Sija | D3: Seura | E3: OTT | F3: KUN | G3: LÖI | H3: TOI | I3: KL | J3: 0 > 1 | K3: 1 > 2 | L3: 2 > 3 | M3: 3 > k | N3: KL-% | P3: LÖI | Q3: TOI | R3: L+T | S3: KL | U3: OTT | V3: KUN | W3: LÖI | X3: TOI | Y3: KL | Z3: KL-% | AB3: LÖI | AC3: TOI | AD3: L+T | AE3: KL | AG3: Puolivälierät | AH3: Välierät | AI3: Pronssi | AJ3: Finaalit | AL3: IL | AM3: LL | AN3: hSM | AO3: K | AP3: H | AQ3: P
B4: 2005 | C4: 8. | D4: AA 2 | F4: suomensarja
B5: 2006 | C5: 9. | D5: AA 2 | F5: suomensarja
B6: 2006 | C6: 6. | D6: AA | F6: ykköspesis
B7: 2007 | C7: 11. | D7: AA | F7: ykköspesis
B8: 2008 | C8: 10. | D8: AA | F8: ykköspesis
B9: 2009 | C9: 8. | D9: AA | F9: ykköspesis
B10: 2010 | C10: 1. | D10: KaMa | F10: ykköspesis | O10: 0
B11: 2011 | C11: 1. | D11: AA | F11: ykköspesis | O11: 0
B12: 2012 | C12: 12. | D12: AA | E12: 25 | F12: 0 | G12: 0 | H12: 20 | I12: 78 | J12: 58 | K12: 17 | L12: 3 | M12: 0 | N12: 45.9 % | O12: =PRODUCT(I12/N12) -> 169.9346405
B13: 2013 | C13: 12. | D13: AA | E13: 24 | F13: 1 | G13: 0 | H13: 24 | I13: 76 | J13: 70 | K13: 3 | L13: 2 | M13: 1 | N13: 57.6 % | O13: =PRODUCT(I13/N13) -> 132.0132013 | Q13: 29.
B14: 2014 | C14: 7. | D14: KoU | E14: 30 | F14: 1 | G14: 1 | H14: 48 | I14: 117 | J14: 109 | K14: 5 | L14: 1 | M14: 2 | N14: 63.6 % | O14: =PRODUCT(I14/N14) -> 183.9622642 | Q14: 7. | R14: 30. | U14: 3 | V14: 0 | W14: 0 | X14: 1 | Y14: 8 | Z14: 66.7 % | AG14: 0-3 ViVe
B15: 2015 | C15: 11. | D15: KoU | E15: 29 | F15: 2 | G15: 1 | H15: 35 | I15: 118 | J15: 94 | K15: 16 | L15: 5 | M15: 3 | N15: 55.9 % | O15: 211 | Q15: 19.
B16: 2016 | C16: 6. | D16: KoU | E16: 20 | F16: 1 | G16: 1 | H16: 22 | I16: 82 | J16: 71 | K16: 7 | L16: 2 | M16: 2 | N16: 59.9 % | O16: 137 | U16: 4 | V16: 0 | W16: 0 | X16: 0 | Y16: 3 | Z16: 15.8 % | AG16: 1-3 JoMa
B17: 2017 | C17: 6. | D17: KoU | E17: 25 | F17: 1 | G17: 3 | H17: 34 | I17: 96 | J17: 86 | K17: 4 | L17: 2 | M17: 4 | N17: 58.9 % | O17: 163 | U17: 3 | V17: 0 | W17: 0 | X17: 4 | Y17: 10 | Z17: 52.6 % | AG17: 0-3 KPL
B18: 2018 | C18: 6. | D18: JymyJussit | E18: 29 | F18: 3 | G18: 2 | H18: 40 | I18: 133 | J18: 118 | K18: 5 | L18: 5 | M18: 5 | N18: 62.4 % | O18: 213.0044843 | Q18: 24. | U18: 3 | V18: 0 | W18: 0 | X18: 4 | Y18: 6 | Z18: 35.3 % | AA18: 17 | AG18: 0-3 JoMa
B19: Yhteensä | E19: =SUM(E4:E18) -> 182 | F19: 9 | G19: 8 | H19: 223 | I19: 700 | J19: 606 | K19: 57 | L19: 20 | M19: 17 | N19: =PRODUCT(I19/O19) -> 57.9 % | O19: =SUM(O3:O18) -> 1209.91459 | P19: 0-0-0 | Q19: 0-0-0 | R19: 0-0-0 | S19: 0-0-0 | U19: =SUM(U4:U18) -> 13 | V19: 0 | W19: 0 | X19: 9 | Y19: 27 | Z19: =PRODUCT(N25) -> 40.3 % | AB19: 0-0-0 | AC19: 0-0-0 | AD19: 0-0-0 | AE19: 0-0-0 | AG19: 0/4 | AH19: 0/0 | AI19: 0/0 | AJ19: 0/0 | AL19: =SUM(AL4:AL18) -> 0 | AM19: 0 | AN19: 0 | AO19: 0 | AP19: 0 | AQ19: 0
AG20: 0.0 % | AH20: 0.0 % | AI20: 0.0 % | AJ20: 0.0 %
B21: Pesispörssi | D21: =SUM(F19:H19)+((I19-F19-G19)/3)+(E19/3)+(AL19*25)+(AM19*25)+(AN19*10)+(AO19*25)+(AP19*20)+(AQ19*15) -> 528.3
B23: URA SUPERISSA | E23: OTT | F23: KUN | G23: LÖI | H23: TOI | I23: KL | K23: ka/L | L23: ka/T | M23: ka/KL | N23: KL-% | P23: ENSIMMÄISET RUNKOSARJASSA | AG23: ENSIMMÄISET PUDOTUSPELEISSÄ | AL23: YLEISÖ
B24: Runkosarja | E24: =PRODUCT(E19) -> 182 | F24: =PRODUCT(F19) -> 9 | G24: =PRODUCT(G19) -> 8 | H24: =PRODUCT(H19) -> 223 | I24: =PRODUCT(I19) -> 700 | K24: =PRODUCT((F24+G24)/E24) -> 0.09 | L24: =PRODUCT(H24/E24) -> 1.23 | M24: =PRODUCT(I24/E24) -> 3.85 | N24: =PRODUCT(N19) -> 57.9 % | O24: =PRODUCT(O19) -> 1209.91459 | P24: Ottelu | R24: 09.05. 2012 AA - PattU 1-2 (2-1, 3-7, 0-1) | Z24: 1. ottelu | AC24: 23 v 10 kk 7 pv | AG24: Ottelu | AH24: 1. 17.08. 2014 ViVe - KoU 2-0 | AL24: 2207 | AN24: 26 v 1 kk 15 pv
B25: Ylempi loppusarja | E25: =PRODUCT(U19) -> 13 | F25: =PRODUCT(V19) -> 0 | G25: 0 | H25: 9 | I25: 27 | K25: =PRODUCT((F25+G25)/E25) -> 0.00 | L25: =PRODUCT(H25/E25) -> 0.69 | M25: =PRODUCT(I25/E25) -> 2.08 | N25: =PRODUCT(I25/O25) -> 40.3 % | O25: 67 | P25: Lyöty | R25: 12.08. 2012 AA - KaMa 0-1 (0-5, 2-2) | Z25: 24. ottelu | AC25: 24 v 1 kk 10 pv | AG25: Lyöty
B26: Alempi loppusarja | E26: 12 | F26: 0 | G26: 3 | H26: 9 | I26: 57 | K26: =PRODUCT((F26+G26)/E26) -> 0.25 | L26: =PRODUCT(H26/E26) -> 0.75 | M26: =PRODUCT(I26/E26) -> 4.75 | N26: =PRODUCT(I26/O26) -> 61.3 % | O26: 93 | P26: Tuotu | R26: 12.05. 2012 KiPa - AA 1-2 (1-4, 2-0, 0-3) | Z26: 2. ottelu | AC26: 23 v 10 kk 10 pv | AG26: Tuotu | AH26: 1. 17.08. 2014 ViVe - KoU 2-0 | AL26: 2207 | AN26: 26 v 1 kk 15 pv
B27: KAIKKI | E27: =SUM(E24:E26) -> 207 | F27: =SUM(F24:F26) -> 9 | G27: =SUM(G24:G26) -> 11 | H27: =SUM(H24:H26) -> 241 | I27: =SUM(I24:I26) -> 784 | K27: =PRODUCT((F27+G27)/E27) -> 0.10 | L27: =PRODUCT(H27/E27) -> 1.16 | M27: =PRODUCT(I27/E27) -> 3.79 | N27: =PRODUCT(I27/O27) -> 57.2 % | O27: =SUM(O24:O26) -> 1369.91459 | P27: Kunnari | R27: 09.06. 2013 AA - JymyJussit 1-0 (0-0, 5-2) | Z27: 62. ottelu | AC27: 24 v 11 kk 7 pv | AG27: Kunnari
O28: =SUM(O25:O27) -> 1529.91459
B29: Seurat | D29: AA = Alajärven Ankkurit (1944), kasvattajaseura | M29: KaMa = Kankaanpään Maila (1958) | V29: KoU = Koskenkorvan Urheilijat (1945) | AD29: JymyJussit = Seinäjoen JymyJussit (2012)
B31: RUNKOSARJA, KA / OTT | F31: IKÄ | G31: OTT | H31: LÖI | I31: TOI | J31: TEHO | K31: KL | M31: SIJOITUS | P31: OTT | Q31: LÖI | R31: TOI | S31: TEHO | U31: KL | W31: RUNKOSARJA, TASASATASET, ka. / peli
B32: 2012 | C32: 12. | D32: AA | F32: 24 | G32: 25 | H32: =PRODUCT((F12+G12)/E12) -> 0.00 | I32: =PRODUCT(H12/E12) -> 0.80 | J32: =PRODUCT(F12+G12+H12)/E12 -> 0.80 | K32: =PRODUCT(I12/E12) -> 3.12 | M32: 1945 - 2012 | O32: 20 | P32: 1319. | R32: 1013. | S32: 1249. | U32: 786. | W32: Etenijätilasto
B33: 2013 | C33: 12. | D33: AA | F33: 25 | G33: 24 | H33: =PRODUCT((F13+G13)/E13) -> 0.04 | I33: =PRODUCT(H13/E13) -> 1.00 | J33: =PRODUCT(F13+G13+H13)/E13 -> 1.04 | K33: =PRODUCT(I13/E13) -> 3.17 | M33: 1945 - 2013 | O33: 20 | P33: 1045. | Q33: 1715. | R33: 693. | S33: 977. | U33: 635. | W33: 200 | Y33: 161. 06.06. 2018 KoU - JymyJussit 1-0 | AG33: 163. ottelu | AH33: 1.23
B34: 2014 | C34: 7. | D34: KoU | F34: 26 | G34: 30 | H34: 0.07 | I34: 1.60 | J34: 1.67 | K34: 3.90 | M34: 1945 - 2014 | O34: 21 | P34: 800. | Q34: 1549. | R34: 406. | S34: 678. | U34: 496.
B35: 2015 | C35: 11. | D35: KoU | F35: 27 | G35: 29 | H35: 0.10 | I35: 1.21 | J35: 1.31 | K35: 4.07 | M35: 1945 - 2015 | P35: 638. | Q35: 1379. | R35: 287. | S35: 541. | U35: 402.
B36: 2016 | C36: 6. | D36: KoU | F36: 28 | G36: 20 | H36: 0.10 | I36: 1.10 | J36: 1.20 | K36: 4.10 | M36: 1945 - 2016 | P36: 557. | Q36: 1316. | R36: 236. | S36: 480. | U36: 357.
B37: 2017 | C37: 6. | D37: KoU | F37: 29 | G37: 25 | H37: 0.16 | I37: 1.36 | J37: 1.52 | K37: 3.84 | M37: 1945 - 2017 | P37: 459. | Q37: 1185. | R37: 178. | S37: 402. | U37: 308.
B38: 2018 | C38: 6. | D38: JymyJussit | F38: 30 | G38: 29 | H38: 0.17 | I38: 1.38 | J38: 1.55 | K38: 4.59 | M38: 1945 - 2018 | P38: 369. | Q38: 1095. | R38: 130. | S38: 331. | U38: 256.
B41: PLAY OFF, KA / OTT | F41: IKÄ | G41: OTT | H41: LÖI | I41: TOI | J41: TEHO | K41: KL | M41: SIJOITUS | P41: OTT | Q41: LÖI | R41: TOI | S41: TEHO | U41: KL | W41: PLAY OFF, TASASATASET, ka. / peli
B42: 2014 | C42: 7. | D42: KoU | F42: 26 | G42: 3 | H42: =PRODUCT((V14+W14)/U14) -> 0.00 | I42: =PRODUCT(X14/U14) -> 0.33 | J42: =PRODUCT(V14+W14+X14)/U14 -> 0.33 | K42: =PRODUCT(Y14/U14) -> 2.67 | M42: 1979 - 2014 | O42: 20 | P42: 585. | R42: 487. | S42: 561. | U42: 545.
B43: 2015 | C43: 11. | D43: KoU | F43: 27 | M43: 1979 - 2015 | O43: 20 | P43: 608. | R43: 503. | S43: 585. | U43: 566.
B44: 2016 | C44: 6. | D44: KoU | F44: 28 | G44: 4 | H44: =PRODUCT((V16+W16)/U16) -> 0.00 | I44: =PRODUCT(X16/U16) -> 0.00 | J44: =PRODUCT(V16+W16+X16)/U16 -> 0.00 | K44: =PRODUCT(Y16/U16) -> 0.75 | M44: 1979 - 2016 | O44: 21 | P44: 502. | R44: 518. | S44: 606. | U44: 553.
B45: 2017 | C45: 6. | D45: KoU | F45: 29 | G45: 3 | H45: =PRODUCT((V17+W17)/U17) -> 0.00 | I45: =PRODUCT(X17/U17) -> 1.33 | J45: =PRODUCT(V17+W17+X17)/U17 -> 1.33 | K45: =PRODUCT(Y17/U17) -> 3.33 | M45: 1979 - 2017 | P45: 463. | R45: 354. | S45: 466. | U45: 472.
B46: 2018 | C46: 6. | D46: JymyJussit | F46: 30 | G46: 3 | H46: 0.00 | I46: 1.33 | J46: 1.33 | K46: 2.00 | M46: 1979 - 2018 | P46: 419. | R46: 284. | S46: 394. | U46: 432.

Sheet MYP, MSS
B1: Jouni Koskela | E1: 2.7.1988 Alajärvi
B2: YKKÖSPESIS | E2: Runkosarja | L2: Runkosarja TOP-10 | Q2: Jatkosarjat | X2: SUOMENSARJA | AA2: Runkosarja | AH2: Runkosarja TOP-10 | AM2: Jatkosarjat
B3: Vuosi | C3: Sija | D3: Seura | E3: OTT | F3: KUN | G3: LÖI | H3: TOI | I3: KL | J3: KL-% | L3: LÖI | M3: TOI | N3: L+T | O3: KL | Q3: OTT | R3: KUN | S3: LÖI | T3: TOI | U3: KL | V3: KL-% | X3: Vuosi | Y3: Sija | Z3: Seura | AA3: OTT | AB3: KUN | AC3: LÖI | AD3: TOI | AE3: KL | AF3: KL-% | AH3: LÖI | AI3: TOI | AJ3: L+T | AK3: KL | AM3: OTT | AN3: KUN | AO3: LÖI | AP3: TOI | AQ3: KL | AR3: KL-%
X4: 2005 | Y4: 8. | Z4: AA 2 | AA4: 14 | AB4: 0 | AC4: 5 | AD4: 7 | AE4: 31 | AF4: 47.0 % | AG4: 66
B5: 2006 | C5: 6. | D5: AA | E5: 6 | F5: 0 | G5: 0 | H5: 3 | I5: 11 | J5: 45.8 % | K5: 24 | Q5: 1 | R5: 0 | S5: 0 | T5: 0 | U5: 1 | V5: 33.3 % | W5: 3 | X5: 2006 | Y5: 9. | Z5: AA 2 | AA5: 5 | AB5: 0 | AC5: 2 | AD5: 5 | AE5: 20 | AF5: 48.8 % | AG5: 41
B6: 2007 | C6: 11. | D6: AA | E6: 10 | F6: 0 | G6: 1 | H6: 6 | I6: 15 | J6: 41.7 % | K6: 36
B7: 2008 | C7: 10. | D7: AA | E7: 19 | F7: 0 | G7: 1 | H7: 10 | I7: 42 | J7: 45.7 % | Q7: 2 | R7: 0 | S7: 1 | T7: 1 | U7: 4 | V7: 36.4 % | W7: 11
B8: 2009 | C8: 8. | D8: AA | E8: 22 | F8: 0 | G8: 4 | H8: 19 | I8: 61 | J8: 52.6 % | K8: 116
B9: 2010 | C9: 1. | D9: KaMa | E9: 20 | F9: 0 | G9: 1 | H9: 22 | I9: 42 | J9: 55.3 % | K9: 76 | Q9: 5 | R9: 0 | S9: 0 | T9: 6 | U9: 11 | V9: 55.0 % | W9: 20
B10: 2011 | C10: 1. | D10: AA | E10: 21 | F10: 0 | G10: 6 | H10: 18 | I10: 54 | J10: 52.9 % | K10: 102 | Q10: 7 | R10: 0 | S10: 5 | T10: 3 | U10: 20 | V10: 47.6 % | W10: 42
B11: YHTEENSÄ | E11: =SUM(E4:E10) -> 98 | F11: =SUM(F4:F10) -> 0 | G11: =SUM(G4:G10) -> 13 | H11: =SUM(H4:H10) -> 78 | I11: =SUM(I4:I10) -> 225 | J11: =PRODUCT(I11/K11) -> 63.6 % | K11: =SUM(K4:K10) -> 354 | Q11: =SUM(Q4:Q10) -> 15 | R11: =SUM(R4:R10) -> 0 | S11: =SUM(S4:S10) -> 6 | T11: =SUM(T4:T10) -> 10 | U11: =SUM(U4:U10) -> 36 | V11: =PRODUCT(U11/W11) -> 47.4 % | W11: =SUM(W4:W10) -> 76 | X11: YHTEENSÄ | AA11: =SUM(AA4:AA10) -> 19 | AB11: =SUM(AB4:AB10) -> 0 | AC11: =SUM(AC4:AC10) -> 7 | AD11: =SUM(AD4:AD10) -> 12 | AE11: =SUM(AE4:AE10) -> 51 | AF11: =PRODUCT(AE11/AG11) -> 47.7 % | AG11: =SUM(AG4:AG10) -> 107 | AM11: =SUM(AM4:AM10) -> 0 | AN11: =SUM(AN4:AN10) -> 0 | AO11: =SUM(AO4:AO10) -> 0 | AP11: =SUM(AP4:AP10) -> 0 | AQ11: =SUM(AQ4:AQ10) -> 0 | AR11: 0.0 % | AS11: =SUM(AS4:AS10) -> 0
B13: KAIKKI OTTELUT | E13: OTT | F13: KUN | G13: LÖI | H13: TOI | I13: KL | J13: KL-% | L13: ka/L | M13: ka/T | N13: ka/l+t | O13: ka/kl | R13: Seurat | T13: AA = Alajärven Ankkurit (1944), kasvattajaseura
B14: SUPERPESIS | E14: 207 | F14: 9 | G14: 11 | H14: 241 | I14: 784 | J14: 57.2 % | K14: =PRODUCT(I14/J14) -> 1370.629371 | L14: =PRODUCT((F14+G14)/E14) -> 0.10 | M14: =PRODUCT(H14/E14) -> 1.16 | N14: =PRODUCT((F14+G14+H14)/E14) -> 1.26 | O14: =PRODUCT(I14/E14) -> 3.79 | T14: KaMa = Kankaanpään Maila (1958)
B15: YKKÖSPESIS | E15: =PRODUCT(E11+Q11) -> 113 | F15: =PRODUCT(F11+R11) -> 0 | G15: =PRODUCT(G11+S11) -> 19 | H15: =PRODUCT(H11+T11) -> 88 | I15: =PRODUCT(I11+U11) -> 261 | J15: =PRODUCT(I15/K15) -> 60.7 % | K15: =PRODUCT(K11+W11) -> 430 | L15: =PRODUCT((F15+G15)/E15) -> 0.17 | M15: =PRODUCT(H15/E15) -> 0.78 | N15: =PRODUCT((F15+G15+H15)/E15) -> 0.95 | O15: =PRODUCT(I15/E15) -> 2.31 | T15: KoU = Koskenkorvan Urheilijat (1945)
B16: SUOMENSARJA | E16: =PRODUCT(AA11+AM11) -> 19 | F16: =PRODUCT(AB11+AN11) -> 0 | G16: =PRODUCT(AC11+AO11) -> 7 | H16: =PRODUCT(AD11+AP11) -> 12 | I16: =PRODUCT(AE11+AQ11) -> 51 | J16: =PRODUCT(I16/K16) -> 47.7 % | K16: =PRODUCT(AG11+AS11) -> 107 | L16: =PRODUCT((F16+G16)/E16) -> 0.37 | M16: =PRODUCT(H16/E16) -> 0.63 | N16: =PRODUCT((F16+G16+H16)/E16) -> 1.00 | O16: =PRODUCT(I16/E16) -> 2.68 | T16: JymyJussit = Seinäjoen JymyJussit (2012)
B17: YHTEENSÄ | E17: =SUM(E14:E16) -> 339 | F17: =SUM(F14:F16) -> 9 | G17: 37 | H17: 341 | I17: 1096 | J17: =PRODUCT(I17/K17) -> 57.5 % | K17: =SUM(K14:K16) -> 1907.629371 | L17: =PRODUCT((F17+G17)/E17) -> 0.14 | M17: =PRODUCT(H17/E17) -> 1.01 | N17: =PRODUCT((F17+G17+H17)/E17) -> 1.14 | O17: =PRODUCT(I17/E17) -> 3.23

Sheet Kärkilyönnit
B1: KÄRKILYÖNNIT RUNKOSARJASSA | V1: VUOSITTAISET SIJOITUKSET TOP - 30
G2: 0 > 1 | J2: 1 > 2 | M2: 2 > 3 | P2: 3 > k | S2: Yhteensä
B3: Vuosi | C3: Sija | D3: Seura | E3: OTT | F3: KL | G3: YHT | H3: % | I3: KL | J3: YHT | K3: % | L3: KL | M3: YHT | N3: % | O3: KL | P3: YHT | Q3: % | R3: KL | S3: YHT | T3: % | V3: Vuosi | W3: Sija | X3: Seura | Y3: 0 > 1 | Z3: 1 > 2 | AA3: 2 > 3 | AB3: 3 > k | AC3: KL
B4: 2012 | C4: 12. | D4: AA | E4: 25 | F4: 58 | G4: 119 | H4: 48.7 % | I4: 17 | J4: 35 | K4: 48.6 % | L4: 3 | M4: 7 | N4: 42.9 % | O4: 0 | P4: 9 | Q4: 0.0 % | R4: 78 | S4: 170 | T4: 45.9 % | V4: 2012 | W4: 12. | X4: AA | Y4: 18.
B5: 2013 | C5: 12. | D5: AA | E5: 24 | F5: 70 | G5: 120 | H5: 58.3 % | I5: 3 | J5: 6 | K5: 50.0 % | L5: 2 | M5: 4 | N5: 50.0 % | O5: 1 | P5: 2 | Q5: 50.0 % | R5: 76 | S5: 132 | T5: 57.6 % | V5: 2013 | W5: 12. | X5: AA | Y5: 11.
B6: 2014 | C6: 7. | D6: KoU | E6: 30 | F6: 109 | G6: 175 | H6: 62.3 % | I6: 5 | J6: 5 | K6: 100.0 % | L6: 1 | M6: 2 | N6: 50.0 % | O6: 2 | P6: 2 | Q6: 100.0 % | R6: 117 | S6: 184 | T6: 63.6 % | V6: 2014 | W6: 7. | X6: KoU | Y6: 4.
B7: 2015 | C7: 11. | D7: KoU | E7: 29 | F7: 94 | G7: 172 | H7: 54.7 % | I7: 16 | J7: 26 | K7: 61.5 % | L7: 5 | M7: 7 | N7: 71.4 % | O7: 3 | P7: 6 | Q7: 50.0 % | R7: 118 | S7: 211 | T7: 55.9 % | V7: 2015 | W7: 11. | X7: KoU | Y7: 10.
B8: 2016 | C8: 6. | D8: KoU | E8: 20 | F8: 71 | G8: 115 | H8: 61.7 % | I8: 7 | J8: 11 | K8: 63.6 % | L8: 2 | M8: 5 | N8: 40.0 % | O8: 2 | P8: 6 | Q8: 33.3 % | R8: 82 | S8: 137 | T8: 59.9 % | V8: 2016 | W8: 6. | X8: KoU | Y8: 15.
B9: 2017 | C9: 6. | D9: KoU | E9: 25 | F9: 86 | G9: 146 | H9: 58.9 % | I9: 4 | J9: 6 | K9: 66.7 % | L9: 2 | M9: 5 | N9: 40.0 % | O9: 4 | P9: 6 | Q9: 66.7 % | R9: 96 | S9: 163 | T9: 58.9 % | V9: 2017 | W9: 6. | X9: KoU | Y9: 14.
B10: 2018 | C10: 6. | D10: JymyJussit | E10: 29 | F10: 118 | G10: 192 | H10: 61.5 % | I10: 5 | J10: 5 | K10: 100.0 % | L10: 6 | M10: 8 | N10: 75.0 % | O10: 5 | P10: 9 | Q10: 55.6 % | R10: 133 | S10: 213 | T10: 62.4 % | V10: 2018 | W10: 6. | X10: JymyJussit | Y10: 5.
B11: Yhteensä | E11: =SUM(E4:E10) -> 182 | F11: =SUM(F4:F10) -> 606 | G11: =SUM(G4:G10) -> 1039 | H11: =PRODUCT(F11/G11) -> 58.3 % | I11: =SUM(I4:I10) -> 57 | J11: =SUM(J4:J10) -> 94 | K11: =PRODUCT(I11/J11) -> 60.6 % | L11: =SUM(L4:L10) -> 21 | M11: =SUM(M4:M10) -> 38 | N11: =PRODUCT(L11/M11) -> 55.3 % | O11: =SUM(O4:O10) -> 17 | P11: =SUM(P4:P10) -> 40 | Q11: =PRODUCT(O11/P11) -> 42.5 % | R11: =SUM(R4:R10) -> 700 | S11: =SUM(S4:S10) -> 1210 | T11: =PRODUCT(R11/S11) -> 57.9 %
B13: KÄRKILYÖNNIT YLEMMISSÄ PUDOTUSPELEISSÄ | V13: VUOSITTAISET SIJOITUKSET TOP - 30
G14: 0 > 1 | J14: 1 > 2 | M14: 2 > 3 | P14: 3 > k | S14: Yhteensä
B15: Vuosi | C15: Sija | D15: Seura | E15: OTT | F15: KL | G15: YHT | H15: % | I15: KL | J15: YHT | K15: % | L15: KL | M15: YHT | N15: % | O15: KL | P15: YHT | Q15: % | R15: KL | S15: YHT | T15: % | V15: Vuosi | W15: Sija | X15: Seura | Y15: 0 > 1 | Z15: 1 > 2 | AA15: 2 > 3 | AB15: 3 > k | AC15: KL
B16: 2012 | C16: 12. | D16: AA | V16: 2012 | W16: 12. | X16: AA
B17: 2013 | C17: 12. | D17: AA | V17: 2013 | W17: 12. | X17: AA
B18: 2014 | C18: 7. | D18: KoU | E18: 3 | F18: 7 | G18: 9 | H18: 77.8 % | I18: 1 | J18: 3 | K18: 33.3 % | L18: 0 | M18: 0 | N18: 0.0 % | O18: 0 | P18: 0 | Q18: 0.0 % | R18: 8 | S18: 12 | T18: 66.7 % | V18: 2014 | W18: 7. | X18: KoU | Y18: 30.
B19: 2015 | C19: 11. | D19: KoU | V19: 2015 | W19: 11. | X19: KoU
B20: 2016 | C20: 6. | D20: KoU | E20: 4 | F20: 3 | G20: 17 | H20: 17.6 % | I20: 0 | J20: 0 | K20: 0.0 % | L20: 0 | M20: 1 | N20: 0.0 % | O20: 0 | P20: 1 | Q20: 0.0 % | R20: 3 | S20: 19 | T20: 15.8 % | V20: 2016 | W20: 6. | X20: KoU
B21: 2017 | C21: 6. | D21: KoU | E21: 3 | F21: 9 | G21: 16 | H21: 56.3 % | I21: 1 | J21: 2 | K21: 50.0 % | L21: 0 | M21: 1 | N21: 0.0 % | O21: 0 | P21: 0 | Q21: 0.0 % | R21: 10 | S21: 19 | T21: 52.6 % | V21: 2017 | W21: 6. | X21: KoU | Y21: 24.
B22: 2018 | C22: 6. | D22: JymyJussit | E22: 3 | F22: 6 | G22: 17 | H22: 35.3 % | I22: 0 | J22: 0 | K22: 0.0 % | L22: 0 | M22: 0 | N22: 0.0 % | O22: 0 | P22: 0 | Q22: 0.0 % | R22: 6 | S22: 17 | T22: 35.3 % | V22: 2018 | W22: 6. | X22: JymyJussit | Y22: 29.
B23: Yhteensä | E23: =SUM(E14:E22) -> 13 | F23: =SUM(F16:F22) -> 25 | G23: =SUM(G16:G22) -> 59 | H23: =PRODUCT(F23/G23) -> 42.4 % | I23: =SUM(I16:I22) -> 2 | J23: =SUM(J16:J22) -> 5 | K23: =PRODUCT(I23/J23) -> 40.0 % | L23: =SUM(L16:L22) -> 0 | M23: =SUM(M16:M22) -> 2 | N23: =PRODUCT(L23/M23) -> 0.0 % | O23: =SUM(O16:O22) -> 0 | P23: =SUM(P16:P22) -> 1 | Q23: =PRODUCT(O23/P23) -> 0.0 % | R23: =SUM(R16:R22) -> 27 | S23: =SUM(S16:S22) -> 67 | T23: =PRODUCT(R23/S23) -> 40.3 %
B25: KÄRKILYÖNNIT
G26: 0 > 1 | J26: 1 > 2 | M26: 2 > 3 | P26: 3 > k | S26: Yhteensä
E27: OTT | F27: KL | G27: YHT | H27: % | I27: KL | J27: YHT | K27: % | L27: KL | M27: YHT | N27: % | O27: KL | P27: YHT | Q27: % | R27: KL | S27: YHT | T27: %
B28: RUNKOSARJA | E28: =PRODUCT(E11) -> 182 | F28: =PRODUCT(F11) -> 606 | G28: =PRODUCT(G11) -> 1039 | H28: =PRODUCT(H11) -> 58.3 % | I28: =PRODUCT(I11) -> 57 | J28: =PRODUCT(J11) -> 94 | K28: =PRODUCT(K11) -> 60.6 % | L28: =PRODUCT(L11) -> 21 | M28: =PRODUCT(M11) -> 38 | N28: =PRODUCT(N11) -> 55.3 % | O28: =PRODUCT(O11) -> 17 | P28: =PRODUCT(P11) -> 40 | Q28: =PRODUCT(Q11) -> 42.5 % | R28: =PRODUCT(R11) -> 700 | S28: =PRODUCT(S11) -> 1210 | T28: =PRODUCT(T11) -> 57.9 %
B29: PLAY OFF | E29: =PRODUCT(E23) -> 13 | F29: =PRODUCT(F23) -> 25 | G29: 59 | H29: 42.4 % | I29: 2 | J29: 5 | K29: 40.0 % | L29: 0 | M29: 2 | N29: 0.0 % | O29: 0 | P29: 1 | Q29: 0.0 % | R29: 27 | S29: 67 | T29: 40.3 %
